{"text_format":"1","workbook":"xlsx","n_sheets":2,"sheets":["رتبة مكون","رتبة رئيسي"],"not_rendered":{"charts":0,"images":0,"macros":1,"external_links":0,"defined_names":0,"comments":0,"pivot_tables":0},"unopened":[],"bounds":{"document_bytes":16777216,"sheet_cells":100000,"rows_first":2000,"rows_last":500,"rows_between":2000,"halvings":0,"cell_chars":16384,"cell_head_chars":4096},"cells_cut":0,"cells_raw":0,"read":"whole","date_system":"1900"}

{"sheet":"رتبة مكون","index":0,"n_rows":19,"n_cols":7,"rows_kept":19,"cut":false,"hidden":false,"merged":[]}
["الرقم","الاســـم و اللقـــــــب","جنس","تاريخ الميلاد","مكان الميلاد","مكــــــــان التعييـــــــــن","تاريخ اول تعين"]
[{"$f":"SUBTOTAL(3,$B2:B$11)","v":10},"سماحــي مصطفــــــــى","ذكر","1969-12-29","البيض","مدرسة زناقي الغاسول","1987-09-29"]
[{"$f":"SUBTOTAL(3,$B3:B$11)","v":9},"فتــاتــي محمـــــد/أحمد","ذكر","1965/00/00","البيض","مدرسة سيد  الحاج الدين","1985-09-20"]
[{"$f":"SUBTOTAL(3,$B4:B$11)","v":8},"كبار أحمد","ذكر","1969-08-01","البيض","سيد احمد بلعباس","1987-10-19"]
[{"$f":"SUBTOTAL(3,$B5:B$11)","v":7},"مشــــــراوي يوســـــــف","ذكر","1968-09-15","البيض","مدرسة نعماوي الشلالــة","1988-01-10"]
[{"$f":"SUBTOTAL(3,$B6:B$11)","v":6},"مفتــــــــاح الشيــــــــخ","ذكر","1967-10-13","البيض","مدرســــة الدغيمــــــــــــة","1986-04-01"]
[{"$f":"SUBTOTAL(3,$B7:B$11)","v":5},"العرابـــي بودالـــــــــي","ذكر","1968-08-10","البيض","مدرسة اللدغيمــــــــــة","1987-10-14"]
[{"$f":"SUBTOTAL(3,$B8:B$11)","v":4},"العلمـــي بوعمامـــــــة","ذكر","1969-07-23","البيض","مدرسة بالهداجي الابيـض","1988-12-11"]
[{"$f":"SUBTOTAL(3,$B9:B$11)","v":3},"بريكـــي لحبيـــــــــــــــب","ذكر","1968-05-05","البيض","مدرسة حي القدس بوقطب","1985-09-26"]
[{"$f":"SUBTOTAL(3,$B10:B$11)","v":2},"بلفضيل خديجة","ذكر","1972-04-10","البيض","م, المدينة الجديدة","1991-09-10"]
[{"$f":"SUBTOTAL(3,$B$11:B11)","v":1},"بن شيــخ خيـــــــــرة","ذكر","1964-01-06","البيض","مدرسة بن باديس بوقطب","1985-09-21"]
[{"$f":"SUBTOTAL(3,$B$11:B12)","v":2},"بن محمد مليكة","ذكر","1970-12-06","البيض","مدرسة سليمان الابيض","1992-01-16"]
[{"$f":"SUBTOTAL(3,$B$11:B13)","v":3},"جبـري محمــــــد","ذكر","1963/00/00","البيض","مدرسة شتوي محمد الشلالة","1985-09-07"]
[{"$f":"SUBTOTAL(3,$B$11:B14)","v":4},"جرايـــد  عبد الكريــــــــم","ذكر","1958/00/00","البيض","مدرسة مولود قاسم بوعلام","1992-01-15"]
[{"$f":"SUBTOTAL(3,$B$11:B15)","v":5},"حمــــــــزة بلعيـــــــــــد","ذكر","1968-05-09","البيض","مدرسة الاميـــــر بوقطـــــب","1988-01-10"]
[{"$f":"SUBTOTAL(3,$B$11:B16)","v":6},"دحمانـــي مدانـــــــــــي","ذكر","1965/00/00","البيض","مدرسة ابن خلدون البيض","1985-09-28"]
[{"$f":"SUBTOTAL(3,$B$11:B17)","v":7},"راجــــــع فاطمـــــــــــة","ذكر","1966-06-17","البيض","مدرسة بن خلدون البيض","1988-01-10"]
[{"$f":"SUBTOTAL(3,$B$11:B18)","v":8},"رويسات(رزقي)عائشـــة","ذكر","1966-07-29","البيض","مدرسة حي العناصر البيض","1986-01-10"]
[{"$f":"SUBTOTAL(3,$B$11:B19)","v":9},"سماحـــي بوبكــــــــر","انثى","1970-01-22","البيض","مدرسة بن السايح الأبيض","1992-01-06"]

{"sheet":"رتبة رئيسي","index":1,"n_rows":22,"n_cols":23,"rows_kept":22,"cut":false,"hidden":false,"merged":[[5,21,6,21],[4,20,4,21],[4,22,6,22],[5,4,5,6],[5,7,5,10],[5,11,6,11],[5,12,6,12],[5,13,5,15],[5,16,6,16],[5,17,6,17],[5,20,6,20],[0,0,0,22],[1,0,1,22],[4,0,6,0],[4,1,6,1],[4,2,6,2],[4,3,6,3],[4,4,4,12],[4,13,4,17],[4,18,6,18],[4,19,6,19]]}
["التحويلات المقترحة بعنوان سنة : 2018"]
["الباب المالي : 31/21/01"]
["مديرية التربية لولاية البيض"]
[]
["الرتبة","المناصب المفتوحة بعنوان سنة  2017 (01)","التعداد المؤشر الى غاية 31 ديسمبر  2016 (02)","المناصب المالية الشاغرة (03)","التكفلات(+4)",null,null,null,null,null,null,null,null,"التحريرات(5)",null,null,null,null,"التعداد الحقيقي الى غاية 31 ديسمبر 2017 (6)= (2)+(4)-(5)","المناصب المالية الشاغرة نهائيا (7)= (1)-(6)","التعديل المقترح",null,"المناصب المفتوحة بعنوان سنة 2018 (10)= (1)+(8)-(9)"]
[null,null,null,null,"الترقية في اطار التعليمة \nرقم 003",null,null,"التوظيف",null,null,null,"باقي حالات التكفل","مجموع التكفلات","التحويل التلقائي لناجم عن الترقية في اطار تعليمة و رقم 003",null,null,"باقي حالات التحرير","مجموع التحريرات",null,null,"(+)(8)","(-)(9)"]
[null,null,null,null,"التأهيل","الامتحان المهني","الايلين للزوال","المدارس العليا","الناجحون في المسابقة","القائمة الاحتياطية الولائية","القائمة الاحتياطية الوطنية",null,null,"التاهيل","الامتحان المهني","الايلين للزوال"]
["استاذ مكون للتعليم المتوسط",null,null,null,null,null,null,null,null,null,null,null,null,null,null,null,null,null,null,null,null,null,{"$f":"B8+U8-V8","v":0}]
["استاذ رئيسي للتعليم المتوسط",null,null,null,null,null,null,null,null,null,null,null,null,null,null,null,null,null,null,null,null,null,{"$f":"B9+U9-V9","v":0}]
["استاذ التعليم المتوسط",null,null,null,null,null,null,null,null,null,null,null,null,null,null,null,null,null,null,null,null,null,0]
["استاذ التعليم الاساسي",null,null,null,null,null,null,null,null,null,null,null,null,null,null,null,null,null,null,null,null,null,0]
["المجموع الجزئي 01",null,null,null,null,null,null,null,null,null,null,null,null,null,null,null,null,null,null,null,null,null,0]
["استاذ مكون للمدرسة الابتدائية",null,null,null,null,null,null,null,null,null,null,null,null,null,null,null,null,null,null,null,null,null,0]
["استاذ رئيسي للمدرسة الابتدائية",null,null,null,null,null,null,null,null,null,null,null,null,null,null,null,null,null,null,null,null,null,0]
["استاذ المدرسة الابتدائية",null,null,null,null,null,null,null,null,null,null,null,null,null,null,null,null,null,null,null,null,null,0]
["معلم المدرسة ",null,null,null,null,null,null,null,null,null,null,null,null,null,null,null,null,null,null,null,null,null,0]
["معلم مساعد",null,null,null,null,null,null,null,null,null,null,null,null,null,null,null,null,null,null,null,null,null,0]
["المجموع الجزئي 02",null,null,null,null,null,null,null,null,null,null,null,null,null,null,null,null,null,null,{"$f":"B18-S18","v":0},{"$f":"U13+U14+U15+U16+U17","v":0},{"$f":"V13+V14+V15+V16+V17","v":0},0]
["المجموع العام",{"$f":"B12+B18","v":0},0,0,0,0,0,0,0,0,0,0,0,0,0,0,0,0,{"$f":"C19+M19-R19","v":0},0,{"$f":"U12+U18","v":0},{"$f":"V12+V18","v":0},0]
[]
[null,null,null,null,null,null,null,null,null,null,null,null,null,"البيض في :......................................"]
[null,null,null,null,null,null,null,null,null,null,null,null,null,null,null,"مدير التربية"]